Cogmind - Beta 9.6 @@@ ROGUE MODE // 2020.06.19 @ 11:36:48 Player: Ari Result: Destroyed by as-61134 with Assembled Rifle Performance ------------- Evolutions (0) 0 Regions Visited (4) 800 Robots Destroyed (29) 145 Value Destroyed (444) 444 Prototype IDs (22) 440 Alien Tech Used (0) 0 Bonus (300) 300 TOTAL SCORE: 2129 Bonus ------- Aligned with FarCom 300 Cogmind --------- Core Integrity 0/250 Matter 224/300 Energy 203/265 System Corruption 2% Temperature Cool (0) Movement Core (400) Ox7 Location -9/Mines Parts ------- > --- POWER (1) -------- Improved Ion Engine > --- PROPULSION (2) --- (None) > --- UTILITY (2) ------ Large Storage Unit Hacking Suite > --- WEAPON (2) ------- (None) > --- INVENTORY (10) --- Aluminum Leg Flying Fortress v7 Light Armor Plating EM Pulse Gun Beam Cannon Light Assault Rifle Peak State ------------ > --- POWER ------------ Improved Ion Engine > --- PROPULSION ------- Aluminum Leg Aluminum Leg > --- UTILITY ---------- Large Storage Unit Hacking Suite > --- WEAPON ----------- Light Assault Rifle Light Assault Rifle > --- INVENTORY -------- Improved Ion Engine Aluminum Leg VTOL Module Flying Fortress v7 Light Armor Plating EM Pulse Gun Rocket Launcher [Rating: 14] Favorites ----------- Power Improved Ion Engine Engine Improved Ion Engine Propulsion Aluminum Leg Leg Aluminum Leg Utility Small Storage Unit Device Improved Terrain Scanner Storage Small Storage Unit Hackware Hacking Suite Weapon Light Assault Rifle Energy Gun Small Laser Energy Cannon Beam Cannon Ballistic Gun Light Assault Rifle Launcher Rocket Launcher Build | -11 -10 -10 -10 -9 ------- Run | Scr Mat Min Exi Min Slots Evolved . | . . . . . Power . | . . . . . Propulsion . | . . . . . Utility . | . . . . . Weapon . | . . . . . Parts Attached 23 | 7 12 1 1 2 Power 3 | 1 1 . . 1 Engine 3 | 1 1 . . 1 Core . | . . . . . Reactor . | . . . . . Propulsion 6 | 2 4 . . . Treads . | . . . . . Leg 6 | 2 4 . . . Wheel . | . . . . . Hover . | . . . . . Flight . | . . . . . Utility 5 | 2 3 . . . Device 1 | 1 . . . . Storage 3 | 1 2 . . . Processor . | . . . . . Hackware 1 | . 1 . . . Protection . | . . . . . Artifact . | . . . . . Weapon 9 | 2 4 1 1 1 Energy Gun 1 | . 1 . . . Energy Cannon 1 | . 1 . . . Ballistic Gun 5 | 2 2 . 1 . Ballistic Cannon . | . . . . . Launcher 2 | . . 1 . 1 Special Weapon . | . . . . . Impact Weapon . | . . . . . Slashing Weapon . | . . . . . Piercing Weapon . | . . . . . Special Melee Weapon . | . . . . . Unidentified Prototypes . | . . . . . Parts Lost 5 | . . . . 5 Power 1 | . . . . 1 Propulsion 2 | . . . . 2 Utility . | . . . . . Weapon 2 | . . . . 2 Highest Loss Streak 5 | . . . . 5 Average Slot Usage (%) 98 | . 97 100 100 89 Engine 14 | . 14 14 14 14 Leg 27 | . 28 28 28 24 Storage 20 | . 23 14 14 14 Hackware 5 | . 1 14 14 14 Energy Cannon 3 | . 4 . . . Ballistic Gun 22 | . 22 14 28 17 Launcher 1 | . . 14 . 3 Naked Turns . | . . . . . Heaviest Build 28 | 13 27 28 25 28 Greatest Support 20 | 20 20 20 20 20 Greatest Overweight (x) 7 | . 1 1 1 7 Average Overweight (x) . | . . 1 1 1 Largest Inventory Capacity 12 | 6 12 10 10 10 Average Capacity 8 | 5 8 10 10 10 Most Carried 10 | 6 10 10 10 10 Average Carried 8 | 4 8 10 9 9 Final Capacity 10 | 6 10 10 10 10 Final Carried 10 | 6 10 10 10 9 Class Distribution -------------------- 100% | Mutant Dominant Class ---------------- Mutant | -10/Materials Mutant | -10/Mines Mutant | -10/Exiles Mutant | -9/Mines Resources | -11 -10 -10 -10 -9 ----------- Run | Scr Mat Min Exi Min Matter Collected 644 | 288 344 11 . 1 Remotely . | . . . . . Salvage Created 586 | 112 422 48 . 4 Parts 57 | 8 45 4 . . Haulers Intercepted . | . . . . . Recyclers Shooed . | . . . . . Parts Field Recycled . | . . . . . Retrieved Matter . | . . . . . Parts Self-Destructed . | . . . . . Prevented . | . . . . . Kills | -11 -10 -10 -10 -9 ------- Run | Scr Mat Min Exi Min Combat Hostiles Destroyed 20 | . 15 2 . 3 Guns 13 | . 12 . . 1 Cannons 3 | . 3 . . . AOE 4 | . . 2 . 2 Classes Destroyed 9 | 3 5 . . 1 Worker 3 | 2 . 1 . . Builder 1 | . 1 . . . Tunneler 1 | 1 . . . . Recycler 1 | 1 . . . . Operator 2 | . 2 . . . Watcher 1 | . 1 . . . Swarmer 9 | . 9 . . . Grunt 8 | . 6 2 . . Assembled 3 | . . . . 3 Best Kill Streak 3 | 3 3 3 . 3 Combat Bots Only 3 | . 3 2 . 3 Max Kills in Single Turn 2 | 1 1 1 . 2 Gunslinging . | . . . . . Exploded 1 | . . 1 . 1 Melee . | . . . . . Uniques/NPCs Destroyed . | . . . . . Combat | -11 -10 -10 -10 -9 -------- Run | Scr Mat Min Exi Min Damage Taken 1236 | . 502 47 . 687 Core 261 | . 64 . . 197 Absorbed by Shields . | . . . . . Core Remaining (%) 100 | 100 . . . . Volleys Fired 73 | 7 60 3 . 3 Largest 2 | 2 2 2 . 2 Hottest 80 | 40 80 53 . 53 Shots Fired 146 | 14 120 6 . 6 Gun 133 | 14 113 3 . 3 Cannon 7 | . 7 . . . Launcher 6 | . . 3 . 3 Special . | . . . . . Kinetic 131 | 14 111 3 . 3 Thermal 9 | . 9 . . . Explosive 6 | . . 3 . 3 Electromagnetic . | . . . . . Robot Hit Streak 14 | 4 14 1 . 2 Robot Miss Streak 5 | 1 3 5 . . Penetration Max . | . . . . . Secondary Targets 2 | . 2 . . . Max Gunslinging Chain 1 | . 1 . . . Shots Hit Robots 78 | 8 68 1 . 1 Core Hits 47 | 5 28 5 . 9 Critical Hits 1 | . 1 . . . Critical Kills . | . . . . . Critical Parts Destroyed 1 | . 1 . . . Melee Attacks . | . . . . . Impact . | . . . . . Slashing . | . . . . . Piercing . | . . . . . Sneak Attacks . | . . . . . Combat Hostiles . | . . . . . Follow-up Attacks . | . . . . . Damage Inflicted 1363 | 90 790 304 . 179 Guns 829 | 90 723 8 . 8 Cannons 53 | . 53 . . . Explosions 467 | . . 296 . 171 Melee . | . . . . . Ramming 14 | . 14 . . . Kinetic 818 | 90 712 8 . 8 Thermal 64 | . 64 . . . Explosive 467 | . . 296 . 171 Electromagnetic . | . . . . . Impact . | . . . . . Slashing . | . . . . . Piercing . | . . . . . Highest Corruption 2 | . 2 2 2 2 Average Corruption 2 | . 2 2 2 2 Corruption Purged . | . . . . . Effects 9 | . 5 2 2 . Message Errors 3 | . 3 . . . Heat Flow Errors 4 | . 2 1 1 . Energy Discharges 1 | . . 1 . . Data Loss (minor) 1 | . . . 1 . Overload Shots . | . . . . . Overflow Damage . | . . . . . Projectiles . | . . . . . Explosions . | . . . . . Melee . | . . . . . Knockbacks . | . . . . . Impact . | . . . . . Kinetic . | . . . . . Secondary . | . . . . . Self-Inflicted Damage 19 | . 7 . . 12 Shots 1 | . . . . 1 Rammed 1 | . 1 . . . Targets Rammed 1 | . 1 . . . Kicked . | . . . . . Crushed . | . . . . . Highest Temperature 266 | . 194 258 266 34 Average Temperature 60 | . 43 91 134 16 Received Heat Transfer 197 | . 150 27 . 20 Siege Activations . | . . . . . Robots Corrupted . | . . . . . Combat Hostiles . | . . . . . Parts Fried . | . . . . . Impact Corruptions . | . . . . . Robots Melted . | . . . . . Combat Hostiles . | . . . . . Parts Melted . | . . . . . Heat Transferred 136 | . 136 . . . Parts Sabotaged . | . . . . . Parts Stolen . | . . . . . Parts Stripped . | . . . . . Power Chain Reactions . | . . . . . Missiles Intercepted . | . . . . . Alert | -11 -10 -10 -10 -9 ------- Run | Scr Mat Min Exi Min Peak Influence 281 | 20 281 113 . 15 Average Influence 118 | 5 140 75 . 4 Maximum Alert Level 1 | . 1 . . . Low Security (%) 92 | 100 90 100 . 100 Level 1 7 | . 9 . . . Level 2 . | . . . . . Level 3 . | . . . . . Level 4 . | . . . . . Level 5 . | . . . . . High Security . | . . . . . Max Security . | . . . . . Squads Dispatched 4 | . 4 . . . Investigation 1 | . 1 . . . Extermination . | . . . . . Reinforcement 3 | . 3 . . . Assault . | . . . . . Garrison . | . . . . . Intercept . | . . . . . Construction Impeded . | . . . . . Haulers Reinforced . | . . . . . Stealth | -11 -10 -10 -10 -9 --------- Run | Scr Mat Min Exi Min Distress Signals . | . . . . . Communications Jammed . | . . . . . Distress Signals . | . . . . . Times Spotted 51 | . 34 2 . 15 Peak Tracking Total 9 | . 3 2 . 9 Tactical Retreats . | . . . . . Traps | -11 -10 -10 -10 -9 ------- Run | Scr Mat Min Exi Min Traps Triggered 2 | . 2 . . . Indirectly . | . . . . . Trap Hack Attempts . | . . . . . Triggered . | . . . . . Disarmed . | . . . . . Reprogrammed . | . . . . . Reused . | . . . . . Traps Extracted . | . . . . . Installed . | . . . . . Triggered . | . . . . . Machines | -11 -10 -10 -10 -9 ---------- Run | Scr Mat Min Exi Min Machines Disabled . | . . . . . Max in Single Turn . | . . . . . Machines Sabotaged . | . . . . . Garrisons Compromised . | . . . . . Overloaded Fab Kills . | . . . . . Fab Network Shutdowns . | . . . . . Hacking | -11 -10 -10 -10 -9 --------- Run | Scr Mat Min Exi Min Machines Accessed 7 | . 5 1 1 . Terminals 6 | . 5 1 . . Fabricators . | . . . . . Repair Stations . | . . . . . Recycling Units . | . . . . . Scanalyzers . | . . . . . Garrison Access . | . . . . . Total Hacks 17 | . 13 3 1 . Successful 11 | . 9 1 1 . Failed 6 | . 4 2 . . Catastrophic 1 | . 1 . . . Database Lockouts . | . . . . . Manual 14 | . 13 . 1 . Terminals 16 | . 13 3 . . Fabricators . | . . . . . Repair Stations . | . . . . . Recycling Units . | . . . . . Scanalyzers . | . . . . . Garrison Access . | . . . . . Terminal Hacks 5 | . 3 1 1 . Part Schematic 1 | . 1 . . . Locate Traps 2 | . 2 . . . Zone Layout 1 | . . 1 . . EX-Prototype ID Bank 1 | . . . 1 . Fabricator Hacks . | . . . . . Repair Station Hacks . | . . . . . Recycling Unit Hacks . | . . . . . Scanalyzer . | . . . . . Garrison Access Hacks . | . . . . . Unauthorized Hacks 6 | . 6 . . . Terminals 6 | . 6 . . . Botnet 5 | . 5 . . . Operators 1 | . 1 . . . Fabricators . | . . . . . Repair Stations . | . . . . . Recycling Units . | . . . . . Scanalyzers . | . . . . . Garrison Access . | . . . . . Data Cores Recovered . | . . . . . Used . | . . . . . Hacking Detections 5 | . 4 1 . . Full Trace Events . | . . . . . Feedback Events . | . . . . . Feedback Blocked . | . . . . . Robot Schematics Acquired . | . . . . . Robots Built . | . . . . . Matter . | . . . . . Time . | . . . . . Total Robot Build Rating . | . . . . . Part Schematics Acquired 1 | . 1 . . . Parts Built . | . . . . . Matter . | . . . . . Time . | . . . . . Total Part Build Rating . | . . . . . Parts Repaired . | . . . . . Time . | . . . . . Parts Recycled . | . . . . . Recycled Matter . | . . . . . Retrieved Matter . | . . . . . Retrieved Components . | . . . . . Parts Scanalyzed . | . . . . . Part Schematics Acquired . | . . . . . Parts Damaged . | . . . . . Bothacking | -11 -10 -10 -10 -9 ------------ Run | Scr Mat Min Exi Min Used RIF Installer . | . . . . . Robots Hacked . | . . . . . Non-combat . | . . . . . Combat . | . . . . . Robot Hacks Applied . | . . . . . Relay Couplers Released . | . . . . . Robots Rewired . | . . . . . Allies Hacked . | . . . . . Hacks Repelled . | . . . . . Allies | -11 -10 -10 -10 -9 -------- Run | Scr Mat Min Exi Min Total Allies . | . . . . . Largest Group . | . . . . . Highest-Rated Group . | . . . . . Highest-Rated Ally . | . . . . . Total Orders . | . . . . . Ally Attacks . | . . . . . Total Damage . | . . . . . Kills . | . . . . . Allies Corrupted . | . . . . . Allies Melted . | . . . . . Intel | -11 -10 -10 -10 -9 ------- Run | Scr Mat Min Exi Min Robot Analysis Total . | . . . . . Derelict Logs Recovered . | . . . . . Drone Launches . | . . . . . Drone Recoveries . | . . . . . Exploration | -11 -10 -10 -10 -9 ------------- Run | Scr Mat Min Exi Min Turns Passed 2264 | 187 1411 147 479 40 Spaces Moved 1481 | 137 919 92 315 18 Core 20 | 18 . . . 2 Treads . | . . . . . Legs 1461 | 119 919 92 315 16 Wheels . | . . . . . Hover . | . . . . . Flight . | . . . . . Fastest Speed 50 | 50 120 150 150 150 Average Speed 133 | 110 128 150 150 179 Slowest Speed 400 | 120 150 150 150 400 Overloaded Moves . | . . . . . Propulsion Burnouts . | . . . . . Robots Hopped . | . . . . . Cave-ins Triggered . | . . . . . Exploration Rate (%) 39 | 6 98 17 66 9 Regions Visited 4 Branch Regions 3 Pre-discovered Areas . | . . . . . Known Exits Taken . | . . . . . Unknown Exits Taken 4 | 1 1 1 1 . Scrap Searched 1 | . . 1 . . Spaces Dug 6 | . . . . 6 Terrain Destroyed 42 | . . 18 . 24 Melee . | . . . . . Projectile . | . . . . . AOE 42 | . . 18 . 24 Actions | -11 -10 -10 -10 -9 --------- Run | Scr Mat Min Exi Min Total 1653 | 156 1055 95 324 23 Wait 28 | . 28 . . . Move 1477 | 136 918 91 314 18 Hop . | . . . . . Pick Up 24 | 6 15 . 3 . Fast Attach 10 | 7 3 . . . Attach 2 | . 1 . . 1 Detach . | . . . . . Swap 11 | . 8 1 1 1 Drop 27 | . 21 . 6 . Fire 73 | 7 60 3 . 3 Melee . | . . . . . Ram . | . . . . . Kick 1 | . 1 . . . Crush . | . . . . . Escape Stasis . | . . . . . Rewire . | . . . . . Trap . | . . . . . Miscellaneous . | . . . . . Route ------- -11/Scrapyard -10/Materials (discovered 4 exits: [*Mat x3] / *Min) -10/Mines (discovered 2 exits: [*Mat] / *Exi) -10/Exiles (discovered 2 exits: [*Min x2]) -9/Mines History --------- Turn | Location | Event 4 | -11/Scrapyard | Discovered new exit (range 15) 188 | -11/Scrapyard | Entered Materials 251 | -10/Materials | Discovered new exit (range 13) 303 | -10/Materials | Build established: Mutant 314 | -10/Materials | Discovered new exit (range 16) 1126 | -10/Materials | Discovered new exit (range 5) 1285 | -10/Materials | Discovered new exit (range 8) 1599 | -10/Materials | Entered Mines 1658 | -10/Mines | Discovered new exit (range 14) 1735 | -10/Mines | Deemed a non-threat by the Exiles lab entrance 1737 | -10/Mines | Discovered new exit (range 5) 1746 | -10/Mines | Entered Exiles 1784 | -10/Exiles | Discovered new exit (range 15) 1808 | -10/Exiles | Met 8R-AWN 1832 | -10/Exiles | Met EX-HEX 1896 | -10/Exiles | Met EX-BIN 1925 | -10/Exiles | Aligned with FarCom system 1926 | -10/Exiles | Given EX-Vault access code 1971 | -10/Exiles | Opened EX-Vault 1988 | -10/Exiles | Found Flying Fortress v7 2027 | -10/Exiles | Warned to stay clear of 0b10 Research branches 2078 | -10/Exiles | Met EX-DEC 2201 | -10/Exiles | Discovered new exit (range 12) 2225 | -10/Exiles | Left Exiles lab with Flying Fortress v7 2225 | -10/Exiles | Entered Mines 2226 | -9/Mines | Assembled infested the area 2257 | -9/Mines | Met a Derelict bent on vengeance 2259 | -9/Mines | Core integrity fell below 50% 2261 | -9/Mines | A weapon hastily lodged in a ceiling crevice suddenly fell to the ground 2265 | -9/Mines | Core integrity fell below 20% 2265 | -9/Mines | Destroyed by as-61134 with Assembled Rifle Last Messages --------------- 02226_ ALERT: Infestation in the mines, dispatching Demolisher response squad. 02243_ as-29093 destroyed. 02245_ C-30 ARC bursts open, deploying its payload. 02252_ Knocked back. 02253_ Imp. Ion Engine destroyed. 02255_ Acquired 1 matter. 02256_ as-64114 destroyed. 02256_ as-49634 destroyed. 02256_ as-18215 destroyed. 02256_ as-03078 destroyed. 02256_ Rocket Launcher destroyed. 02258_ Lgt. Assault Rifle destroyed. 02258_ Aluminum Leg destroyed. 02258_ as-48039 destroyed. 02258_ as-30783 destroyed. 02260_ Aluminum Leg destroyed. 02261_ A Mak. Hammer hastily lodged in a ceiling crevice suddenly falls to the ground. 02262_ The unstable cave ceiling collapses. Map ----- +----------------------------------------------------+ | ?????????????????????????????????????????????????? | | ?????????????????????????????????????????????????? | | ?????????????????????????????????????????????????? | | ?????????????????????????????????????????????????? | | ?????????????????????????????????????????????????? | | ?????????????????????? ??????????????????????????? | | ?????????????????????? #?????????????????????????? | | ??????????????????????? ##???????????????????????? | | ??????????????????????? "???????????????????????? | | ??????????????????????? %???????????????????????? | | ???????????????????????? "???????????????????????? | | ???????????????????????? #??????????????????????? | | ????????????????????????# ??????????????????????? | | ???????????????????????## ##????????????????????? | | ??????????????????????## #????????????????????? | | ??????????????????????# ##???????????????????? | | ???????????????????###? #???????????????????? | | ???????????????????? ??? #???????????????????? | | ?????????????????#### ##?##k #???????????????????? | | ?????????????????# # # # #???????????????????? | | ????????????????### # d##??????????????????? | | ???????????????## d ##?????????????????? | | ???????????????# aa ##????????????????? | | ???????????????# a a #????????????????? | | ???????????????# #????????????????? | | ???????????????# @ ##????????????????? | | ???????????????# ##?????????????????? | | ???????????????# ##??????????????????? | | ???????????? a a ## #???????????????????? | | ??????????# ???## k#???????????????????? | | ???????????# ?????###### #???????????????????? | | ???????????# ????????????# #???????????????????? | | ??????????????????????????? #???????????????????? | | ??????????????????????????? ???????????????????? | | ???????????????????????????####??????????????????? | | ?????????????????????????????????????????????????? | | ?????????????????????????????????????????????????? | | ?????????????????????????????????????????????????? | | ?????????????????????????????????????????????????? | | ?????????????????????????????????????????????????? | | ?????????????????????????????????????????????????? | | ?????????????????????????????????????????????????? | | ?????????????????????????????????????????????????? | | ?????????????????????????????????????????????????? | | ?????????????????????????????????????????????????? | | ?????????????????????????????????????????????????? | | ?????????????????????????????????????????????????? | | ?????????????????????????????????????????????????? | | ?????????????????????????????????????????????????? | | ?????????????????????????????????????????????????? | +----------------------------------------------------+ Best States ------------- Heat Dissipation 25 Energy Generation 12 Energy Capacity 265 Matter Stores 300 Matter Capacity 300 Sight Range 16 Terrain Scan Range 16 Terrain Scan Density 10 Evasion (%) 50 Offensive Hacking 10 Item Schematics ----------------- Med. Storage Unit | -10/Materials | Hacked Robot Schematics ------------------ None Fabricated ------------ Nothing Alien Tech Used ----------------- None Achievements -------------- None Challenges ------------ None Game ------ Seed TacticalDataMaul Manual? 0 Play Time 00:15:52 Cumulative 29.3 hours Start 2020.06.19 @ 10:55:54 End 2020.06.19 @ 11:36:48 Sessions 1 Manual Loads 0 Difficulty Rogue Special Mode None Game No. 67 Rogue 65 Adventurer 2 Explorer 0 Win Type - Total 0 Types 0/0/0/0/0/0/0 Lore% 34 Gallery% 38 Achievement% 29 Wizard Run 0 Options --------- ASCII 0 Keyboard 0 Movement Arrows Keybinds 0 Fullscreen 2 Font 18/SmallcapsGlow Map View 76x50 Tactical HUD 1 Map Filters NONE Filters NONE Steam 1 RUN: 8c8d36f1-885a-498a-bbf4-a37535f0c674